bitfinex-derivatives/quotes_SOLF0:USTF0_20250416
["timestamp","ask_amount","ask_price","bid_price","bid_amount"]
[1744763960270,0.05438254,126.97,126.94,0.05751666]
[1744763960865,43.24843767,126.97,126.94,0.05751666]
[1744763961061,43.24843767,126.97,126.89,32.28]
[1744763961262,7.8792,126.93,126.9,7.8806]
[1744763961475,10.91405513,126.95,126.9,7.8806]
[1744763961782,2.1185,126.94,126.9,7.8806]
[1744763962070,7.8793,126.93,126.9,7.8806]
[1744763962268,7.93390921,126.93,126.91,0.05814885]
[1744763962475,0.05460921,126.93,126.91,7.93834885]
[1744763963876,0.05460921,126.93,126.92,7.8796]
[1744763964785,9.21e-06,126.93,126.92,7.8796]
[1744763964972,13.08,126.97,126.96,7.8771]
[1744763966173,18.60327849,126.98,126.95,7.93319423]
[1744763966377,0.05327849,126.98,126.95,0.05579423]
[1744763966777,0.05327849,126.98,126.96,7.8767]
[1744763967169,0.05327849,126.98,126.95,0.05579423]
[1744763967375,10.96733362,126.98,126.95,0.05579423]
[1744763967879,7.8768,126.97,126.95,0.05579423]
[1744763968677,7.8771,126.96,126.95,0.05579423]
[1744763969579,43.22733362,126.98,126.95,0.05579423]
[1744763969580,32.31327849,126.98,126.95,0.05579423]
[1744763969980,32.31327849,126.98,126.95,7.93319423]
[1744763970181,32.31327849,126.98,126.95,0.05579423]
[1744763970680,43.22733362,126.98,126.95,0.05579423]
[1744763971179,43.22733362,126.98,126.91,32.26]
[1744763971380,2.1281,126.97,126.91,32.26]
[1744763972181,0.05166711,126.95,126.93,7.93280375]
[1744763972579,0.05166711,126.95,126.94,7.8783]
[1744763975182,0.05166711,126.95,126.93,0.05410375]
[1744763975584,0.05166711,126.95,126.94,7.8783]
[1744763975781,0.05166711,126.95,126.93,0.05410375]
[1744763976175,10.91405513,126.94,126.9,7.8805]
[1744763976380,13.03705513,126.94,126.9,7.8805]
[1744763976585,7.8793,126.93,126.9,7.8805]
[1744763976786,7.8793,126.93,126.91,7.88]
[1744763977186,7.93710418,126.93,126.91,0.0521696]
[1744763977387,7.8796,126.92,126.91,0.0521696]
[1744763977791,7.8806,126.91,126.86,32.24]
[1744763978287,45.27705513,126.94,126.86,43.15405513]
[1744763978487,7.8793,126.93,126.86,43.15405513]
[1744763978786,0.05980213,126.91,126.89,7.881]
[1744763979486,0.05980213,126.91,126.88,7.93207207]
[1744763980092,7.8809,126.9,126.88,0.05037207]
[1744763980387,10.97385726,126.91,126.88,0.05037207]
[1744763980590,7.8813,126.9,126.88,0.05037207]
[1744763981489,7.8814,126.89,126.88,0.05037207]
[1744763981690,0.05980213,126.91,126.88,0.05037207]
[1744763982793,7.94020213,126.91,126.88,7.93207207]
[1744763983092,0.05980213,126.91,126.88,0.05037207]
[1744763983395,0.05980213,126.91,126.9,7.8808]
[1744763989998,0.05980213,126.91,126.88,0.05037207]
[1744763990396,7.94030213,126.91,126.88,7.93207207]
[1744763990595,10.97385726,126.91,126.88,0.05037207]
[1744763990999,7.8811,126.9,126.88,0.05037207]
[1744763993095,10.97385726,126.91,126.88,7.93237207]
[1744763993301,0.05980213,126.91,126.88,0.05037207]
[1744763993801,7.94030213,126.91,126.88,7.93207207]
[1744763994101,0.05980213,126.91,126.88,7.93207207]
[1744763994801,0.05980213,126.91,126.89,7.8812]
[1744763995201,0.05980213,126.91,126.88,0.05037207]
[1744763995901,0.05980213,126.91,126.89,7.8811]
[1744763996201,0.05980213,126.91,126.88,0.05037207]
[1744763997203,7.94030213,126.91,126.89,7.8814]
[1744763997500,0.05980213,126.91,126.88,0.05037207]
[1744763999503,0.05980213,126.91,126.88,10.9644272]
[1744764000296,0.05980213,126.91,126.9,7.8808]
[1744764000602,0.05980213,126.91,126.9,40.1408]
[1744764000903,0.05980213,126.91,126.9,32.26]
[1744764001098,0.05980213,126.91,126.89,7.8811]
[1744764001404,0.05980213,126.91,126.88,32.31037207]
[1744764001595,0.05980213,126.91,126.89,7.8814]
[1744764001800,10.97385726,126.91,126.88,0.05037207]
[1744764002001,10.91405513,126.89,126.88,0.05037207]
[1744764002202,18.79545513,126.89,126.88,0.05037207]
[1744764004807,10.91405513,126.87,126.82,32.24]
[1744764005105,10.91405513,126.89,126.82,32.24]
[1744764005407,7.8831,126.87,126.82,32.24]
[1744764005602,0.04978405,126.86,126.84,7.8844]
[1744764006895,0.04978405,126.86,126.82,32.24]
[1744764007604,7.8844,126.85,126.82,40.1257]
[1744764007804,43.20383918,126.86,126.78,32.24]
[1744764008007,0.05806493,126.83,126.79,10.91405513]
[1744764008401,0.05806493,126.83,126.82,7.8858]
[1744764008906,0.05806493,126.83,126.79,10.91405513]
[1744764009106,0.05806493,126.83,126.78,32.24]
[1744764009705,7.94356493,126.83,126.78,32.24]
[1744764009910,0.05806493,126.83,126.78,32.24]
[1744764010201,0.05806493,126.83,126.8,7.8866]
[1744764011006,7.94336493,126.83,126.8,7.8866]
[1744764013111,0.05806493,126.83,126.78,32.24]
[1744764013310,10.97212006,126.83,126.75,32.24]
[1744764013505,0.0541474,126.8,126.75,32.24]
[1744764013907,0.0541474,126.8,126.72,10.91405513]
[1744764014201,0.05774922,126.77,126.74,10.91405513]
[1744764015107,0.05774922,126.77,126.75,7.8897]
[1744764015308,0.05774922,126.77,126.72,43.15405513]
[1744764016117,38.777,126.84,126.75,10.91405513]
[1744764016315,10.91405513,126.83,126.76,32.26]
[1744764016513,7.8872,126.8,126.76,32.26]
[1744764016815,10.91405513,126.81,126.76,32.26]
[1744764017114,0.05052613,126.8,126.77,0.05251479]
[1744764017305,7.93782613,126.8,126.77,7.94121479]
[1744764018513,10.91405513,126.79,126.77,0.05251479]
[1744764018908,7.8883,126.78,126.77,0.05251479]
[1744764019209,10.91405513,126.79,126.73,32.26]
[1744764019410,7.8899,126.76,126.73,7.8911]
[1744764019714,2.2831,126.77,126.7,599.7]
[1744764020014,10.1723,126.77,126.74,7.8905]
[1744764020218,10.23172861,126.77,126.74,7.8905]
[1744764020919,0.05942861,126.77,126.75,7.8898]
[1744764021113,0.05942861,126.77,126.71,10.91405513]
[1744764021617,0.05942861,126.77,126.75,7.8899]
[1744764023117,7.8895,126.76,126.73,7.8911]
[1744764023521,7.8895,126.76,126.7,599.7]
[1744764023816,0.05581648,126.74,126.7,599.7]
[1744764025120,0.05581648,126.74,126.73,7.8914]
[1744764026519,0.05581648,126.74,126.73,18.80545513]
[1744764029321,0.05581648,126.74,126.73,7.8914]
[1744764033228,0.05581648,126.74,126.66,10.91405513]
[1744764033429,0.04989605,126.71,126.68,10.91405513]
[1744764033620,0.04989605,126.71,126.7,7.8932]
[1744764033919,0.04989605,126.71,126.7,18.80725513]
[1744764034119,0.04989605,126.71,126.7,51.08725513]
[1744764035425,0.04989605,126.71,126.7,40.1732]
[1744764038824,16.07,126.76,126.7,43.19405513]
[1744764039029,16.07,126.76,126.72,10.91405513]
[1744764039431,16.07,126.76,126.75,7.8901]
[1744764043134,16.07,126.76,126.74,0.05211413]
[1744764043636,16.07,126.76,126.74,7.94251413]
[1744764044836,16.07,126.76,126.74,0.05211413]
[1744764045037,23.9597,126.76,126.74,0.05211413]
[1744764045527,16.07,126.76,126.74,7.94281413]
[1744764046537,16.07,126.76,126.74,0.05211413]
[1744764046732,10.91405513,126.75,126.67,52.34980598]
[1744764046933,13.11325513,126.75,126.67,68.9630034]
[1744764047135,7.8918,126.73,126.69,7.8936]
[1744764047634,0.05564738,126.72,126.67,68.9630034]
[1744764048038,0.05564738,126.72,126.67,79.87705853]
[1744764048737,0.05564738,126.72,126.71,7.8926]
[1744764050341,0.05564738,126.72,126.67,43.17405513]
[1744764050740,7.94774738,126.72,126.69,7.8935]
[1744764051441,7.8927,126.71,126.68,7.8943]
[1744764051843,0.05564738,126.72,126.67,32.26]
[1744764052341,7.94794738,126.72,126.68,7.8942]
[1744764052546,7.94794738,126.72,126.67,32.26]
[1744764052747,0.05564738,126.72,126.67,43.17405513]
[1744764053748,0.05564738,126.72,126.69,7.8934]
[1744764053947,0.05564738,126.72,126.67,43.17405513]
[1744764055350,0.05564738,126.72,126.69,7.8935]
[1744764055550,0.05564738,126.72,126.67,32.26]
[1744764055848,0.05564738,126.72,126.68,7.8942]
[1744764056049,0.05564738,126.72,126.67,32.26]
[1744764056249,7.94794738,126.72,126.67,32.26]
[1744764056547,7.94794738,126.72,126.69,7.8936]
[1744764057453,23.74794738,126.72,126.69,7.8936]
[1744764058152,7.8927,126.71,126.68,7.8942]
[1744764058354,15.85564738,126.72,126.67,32.26]
[1744764058847,7.8932,126.7,126.67,40.1547]
[1744764059048,7.8932,126.7,126.67,7.8947]
[1744764059651,43.17405513,126.71,126.64,32.26]
[1744764059847,0.05745243,126.69,126.64,32.26]
[1744764060454,7.8947,126.68,126.65,7.8959]
[1744764060655,0.05745243,126.69,126.64,32.26]
[1744764061056,7.8949,126.68,126.65,7.8962]
[1744764062558,7.8953,126.67,126.64,40.1567]
[1744764062758,4.5117,126.68,126.64,32.26]
[1744764062959,16.66,126.67,126.64,32.26]
[1744764063161,16.66,126.67,126.65,7.8964]
[1744764063460,16.66,126.67,126.64,32.26]
[1744764064761,16.66,126.67,126.65,7.8961]
[1744764068765,16.66,126.67,126.66,7.8957]
[1744764075764,16.66,126.67,126.66,14.896464]
[1744764076167,16.66,126.67,126.66,7.8957]
[1744764077067,16.66,126.67,126.66,14.896464]
[1744764077670,16.66,126.67,126.66,7.8957]
[1744764078465,16.66,126.67,126.65,7.8962]
[1744764080073,23.660764,126.67,126.62,7.000764]
[1744764080272,7.000764,126.64,126.58,607.280764]
[1744764080468,0.05065591,126.62,126.58,607.280764]
[1744764080664,7.000764,126.61,126.57,9.17575085]
[1744764080870,7.000764,126.6,126.57,9.17575085]
[1744764081167,7.000764,126.59,126.57,9.17575085]
[1744764081363,7.000764,126.58,126.56,27.52725255]
[1744764081565,7.000764,126.57,126.55,97.59861985]
[1744764081767,7.000764,126.56,126.55,97.59861985]
[1744764081967,7.000764,126.56,126.54,195.08849372]
[1744764082269,7.000764,126.56,126.54,21.17861039]
[1744764082270,7.000764,126.55,126.54,21.17861039]
[1744764082471,14.903364,126.55,126.54,21.17861039]
[1744764082773,7.000764,126.55,126.53,184.04812379]
[1744764082969,39.260764,126.54,126.51,346.21261822]
[1744764083269,10.96724185,126.53,126.51,346.21261822]
[1744764083970,32.26,126.54,126.47,38.71209167]
[1744764084170,0.05468847,126.52,126.47,38.71209167]
[1744764084374,0.05468847,126.52,126.5,7.9052]
[1744764084673,0.05468847,126.52,126.47,38.71209167]
[1744764084872,0.05468847,126.52,126.5,7.9052]
[1744764085073,0.05468847,126.52,126.47,38.71209167]
[1744764085278,0.05468847,126.52,126.48,4.4477]
[1744764085488,0.05468847,126.52,126.51,7.9051]
[1744764086373,8.847e-05,126.52,126.51,18.87234185]
[1744764087279,8.847e-05,126.52,126.51,7.9051]
[1744764087678,8.847e-05,126.52,126.5,40.22290071]
[1744764087978,8.847e-05,126.52,126.5,7.96290071]
[1744764089071,8.847e-05,126.52,126.5,0.05750071]
[1744764090079,7.90488847,126.52,126.5,0.05750071]
[1744764090781,7.9051,126.51,126.5,0.05750071]
[1744764091983,18.87234185,126.51,126.5,0.05750071]
[1744764092171,7.9071,126.48,126.44,32.28]
[1744764092372,7.9071,126.48,126.43,4.3126]
[1744764092571,7.9071,126.48,126.44,7.9092]
[1744764092775,7.9071,126.48,126.43,4.3126]
[1744764092975,36.8933,126.52,126.44,10.96724185]
[1744764093172,36.8933,126.52,126.47,7.9073]
[1744764093379,0.0515774,126.49,126.44,10.96724185]
[1744764094184,7.9579774,126.49,126.44,10.96724185]
[1744764095283,0.0515774,126.49,126.44,10.96724185]
[1744764096481,7.9582774,126.49,126.43,4.3126]
[1744764097187,7.9582774,126.49,126.45,7.9083]
[1744764097588,43.22724185,126.48,126.41,4.2919]
[1744764097784,0.05497055,126.46,126.42,7.9103]
[1744764097986,7.96347055,126.46,126.42,7.9103]
[1744764098187,0.05497055,126.46,126.45,7.9088]
[1744764099983,367.2868,126.54,126.45,10.96724185]
[1744764100188,32.26,126.53,126.47,10.96724185]
[1744764100486,7.9054,126.51,126.47,7.9072]
[1744764100882,10.96724185,126.49,126.48,0.05508619]
[1744764101080,43.22724185,126.49,126.42,7.9104]
[1744764101278,7.9092,126.45,126.41,4.2919]
[1744764101485,10.96724185,126.47,126.39,32.26]
[1744764101686,10.96724185,126.45,126.4,10.0338]
[1744764101987,7.9669762,126.44,126.4,2.1223]
[1744764102190,0.0571762,126.44,126.4,2.1223]
[1744764102784,0.0571762,126.44,126.41,7.9112]
[1744764103282,0.0571762,126.44,126.41,7.9113]
[1744764103482,18.2071762,126.44,126.41,7.9113]
[1744764103780,7.9102,126.43,126.4,2.1223]
[1744764103982,18.2071762,126.44,126.39,32.26]
[1744764104485,7.9104,126.43,126.4,7.9117]
[1744764104787,18.2071762,126.44,126.4,7.9117]
[1744764105088,7.9107,126.42,126.39,7.9123]
[1744764105288,18.2071762,126.44,126.37,10.96724185]
[1744764105487,0.05881261,126.42,126.37,10.96724185]
[1744764105687,0.05881261,126.42,126.4,7.9117]
[1744764105889,0.05881261,126.42,126.37,10.96724185]
[1744764106090,0.05881261,126.42,126.39,7.9122]
[1744764106290,11.02605446,126.42,126.33,568.94]
[1744764106491,0.05181682,126.39,126.34,10.96724185]
[1744764106691,0.05181682,126.39,126.37,7.9138]
[1744764106892,0.05181682,126.39,126.36,10.96724185]
[1744764107088,0.05181682,126.39,126.37,6.78]
[1744764107288,0.05181682,126.39,126.38,7.9132]
[1744764107989,0.05181682,126.39,126.37,14.6935]
[1744764108897,0.05181682,126.39,126.38,7.9132]
[1744764109098,0.05181682,126.39,126.36,32.28]
[1744764109590,0.05181682,126.39,126.36,40.1939]
[1744764109793,0.05181682,126.39,126.36,43.24724185]
[1744764109992,50.43,126.44,126.38,10.96724185]
[1744764110695,50.43,126.44,126.4,7.9116]
[1744764110995,58.3398,126.44,126.4,7.9116]
[1744764111197,0.05989619,126.43,126.41,0.05193246]
[1744764111895,0.05989619,126.43,126.41,7.96313246]
[1744764112489,0.05989619,126.43,126.41,0.05193246]
[1744764115005,7.9107,126.42,126.41,0.05193246]
[1744764116199,7.97029619,126.43,126.41,0.05193246]
[1744764116404,0.05989619,126.43,126.41,0.05193246]
[1744764116604,0.05989619,126.43,126.41,7.96293246]
[1744764117205,0.05989619,126.43,126.41,0.05193246]
[1744764117605,7.97029619,126.43,126.41,0.05193246]
[1744764118203,7.9107,126.42,126.41,0.05193246]
[1744764118407,11.02713804,126.43,126.36,7.9142]
[1744764118608,10.96724185,126.41,126.34,2.3234]
[1744764118808,7.9129,126.39,126.35,7.9147]
[1744764119008,7.9129,126.39,126.34,2.3234]
[1744764119407,0.05178069,126.38,126.35,7.9146]
[1744764119609,7.96548069,126.38,126.34,2.3234]
[1744764119809,0.05178069,126.38,126.34,2.3234]
[1744764120408,32.28,126.46,126.36,10.96724185]
[1744764120707,32.28,126.46,126.38,10.96724185]
[1744764120907,7.9092,126.45,126.38,10.96724185]
[1744764121107,32.28,126.46,126.41,7.911]
[1744764121410,0.05473041,126.45,126.42,0.05178069]
[1744764121911,17.58473041,126.45,126.42,0.05178069]
[1744764122513,7.9095,126.44,126.42,0.05178069]
[1744764123106,17.58473041,126.45,126.42,0.05178069]
[1744764123706,17.58473041,126.45,126.43,7.9098]
[1744764124907,17.58473041,126.45,126.42,0.05178069]
[1744764125113,17.58473041,126.45,126.44,7.9095]
[1744764127918,17.58473041,126.45,126.44,18.87674185]
[1744764128617,32.28,126.49,126.47,7.9074]
[1744764128813,13.58,126.51,126.46,10.96724185]
[1744764129609,0.0555364,126.5,126.47,7.96153737]
[1744764130521,7.9616364,126.5,126.47,0.05423737]
[1744764130717,0.0555364,126.5,126.47,0.05423737]
[1744764130917,0.0555364,126.5,126.49,7.9063]
[1744764135118,3.64e-05,126.5,126.49,7.9063]
[1744764135424,6.02,126.56,126.49,40.16]
[1744764135627,6.02,126.56,126.54,10.96724185]
[1744764135826,6.02,126.56,126.55,7.9026]
[1744764136028,10.96724185,126.59,126.53,32.24]
[1744764136423,7.96055331,126.57,126.55,0.06060867]
[1744764136924,0.05885331,126.57,126.55,0.06060867]
[1744764138027,7.9026,126.56,126.52,7.9042]
[1744764138231,11.02609516,126.57,126.5,32.24]
[1744764138426,10.96724185,126.57,126.5,32.24]
[1744764138728,7.903,126.55,126.51,7.9045]
[1744764138924,0.05167989,126.54,126.52,0.05838887]
[1744764139326,0.05167989,126.54,126.53,7.9038]
[1744764140324,0.05167989,126.54,126.52,0.05838887]
[1744764140928,0.05167989,126.54,126.52,7.96248887]
[1744764141324,0.05167989,126.54,126.52,0.05838887]
[1744764142036,0.05167989,126.54,126.53,7.9038]
[1744764142955,0.05167989,126.54,126.52,0.05838887]
[1744764143341,7.9038,126.53,126.52,0.05838887]
[1744764145069,7.9061,126.5,126.47,7.9073]
[1744764145269,10.96724185,126.51,126.44,32.24]
[1744764145769,7.9064,126.49,126.46,7.9079]
[1744764145969,10.96724185,126.51,126.44,32.24]
[1744764146167,11.02296179,126.49,126.46,0.04304996]
[1744764146464,0.05571994,126.49,126.46,0.04304996]
[1744764146897,0.05571994,126.49,126.48,7.907]
[1744764148273,0.05571994,126.49,126.47,7.9073]
[1744764148568,0.05571994,126.49,126.46,0.04304996]
[1744764150271,0.05571994,126.49,126.46,11.01029181]
[1744764150776,0.05571994,126.49,126.48,7.907]
[1744764157072,6.6598,126.57,126.48,7.9]
[1744764157273,2.1273,126.57,126.5,10.96724185]
[1744764157471,2.1273,126.57,126.52,7.9042]
[1744764158072,7.96036601,126.56,126.53,0.05315387]
[1744764158370,7.96036601,126.56,126.53,7.95685387]
[1744764159778,0.05776601,126.56,126.54,7.9032]
[1744764160072,0.05776601,126.56,126.53,0.05315387]
[1744764160273,7.96006601,126.56,126.53,7.95665387]
[1744764161251,10.96724185,126.54,126.46,32.2]
[1744764161574,10.96724185,126.52,126.43,39.0304]
[1744764161848,7.9062,126.5,126.47,7.9073]
[1744764162045,10.96724185,126.52,126.43,39.0304]
[1744764162238,0.0500279,126.49,126.48,7.9067]
[1744764162443,0.0500279,126.49,126.43,39.0304]
[1744764162643,0.0500279,126.49,126.47,0.04561603]
[1744764163643,0.0500279,126.49,126.48,7.907]
[1744764171550,0.0500279,126.49,126.47,40.17291603]
[1744764171949,0.0500279,126.49,126.47,7.95291603]
[1744764172548,0.0500279,126.49,126.48,7.907]
[1744764174147,5.88,126.53,126.48,43.18724185]
[1744764174352,5.88,126.53,126.48,47.67334185]
[1744764175156,0.0520537,126.52,126.48,47.67334185]
[1744764175550,0.0520537,126.52,126.5,10.96724185]
[1744764175751,0.0520537,126.52,126.5,11.02660136]
[1744764176156,0.0520537,126.52,126.51,7.9051]
[1744764176551,14.51,126.54,126.5,11.02660136]
[1744764176753,14.51,126.54,126.53,7.9038]
[1744764177052,10.0948,126.57,126.5,11.02660136]
[1744764177453,7.9016,126.57,126.54,7.9028]
[1744764177654,0.05619115,126.57,126.54,0.05033359]
[1744764177850,0.05619115,126.57,126.55,7.9026]
[1744764178355,0.05619115,126.57,126.54,0.05033359]
[1744764178558,0.05619115,126.57,126.56,7.902]
[1744764180856,0.05619115,126.57,126.54,0.05033359]
[1744764181064,10.96724185,126.56,126.48,32.2]
[1744764181460,7.9031,126.55,126.51,7.9046]
[1744764181762,7.9031,126.55,126.48,32.2]
[1744764181961,7.9031,126.55,126.48,34.3139]
[1744764182164,0.05917066,126.53,126.51,7.9046]
[1744764183261,0.05917066,126.53,126.52,7.9045]
[1744764185465,0.05917066,126.53,126.51,7.9046]
[1744764186768,0.05917066,126.53,126.52,7.9045]
[1744764188973,0.05917066,126.53,126.5,0.05463776]
[1744764189469,7.9051,126.51,126.5,0.05463776]
[1744764190366,17.53412508,126.52,126.45,32.18]
[1744764190670,17.53412508,126.52,126.47,7.9072]
[1744764190870,32.18,126.53,126.45,32.18]
[1744764191173,32.18,126.53,126.49,7.9063]
[1744764191468,32.18,126.53,126.5,0.04272628]
[1744764191469,0.05645064,126.52,126.5,0.04272628]
[1744764191661,7.9052,126.51,126.5,0.04272628]
[1744764191860,0.05645064,126.52,126.5,7.94832628]
[1744764192764,0.05645064,126.52,126.5,0.04272628]
[1744764192765,7.96145064,126.52,126.5,0.04272628]
[1744764193066,0.05645064,126.52,126.5,0.04272628]
[1744764193467,0.05645064,126.52,126.5,7.94812628]
[1744764194173,7.96115064,126.52,126.5,7.94812628]
[1744764194374,0.05645064,126.52,126.5,7.94812628]
[1744764195074,0.05645064,126.52,126.5,0.04272628]
[1744764195773,0.05645064,126.52,126.5,7.94812628]
[1744764196174,7.96105064,126.52,126.5,0.04272628]
[1744764198277,0.05645064,126.52,126.5,0.04272628]
[1744764198672,0.05645064,126.52,126.45,32.18]
[1744764198673,17.59057572,126.52,126.45,32.18]
[1744764198873,7.9069,126.49,126.46,7.9079]
[1744764199078,19.80952508,126.52,126.46,7.9079]
[1744764199879,7.9065,126.49,126.46,7.9079]
[1744764200279,0.05261473,126.5,126.45,7.9086]
[1744764200480,7.9072,126.48,126.45,7.9086]
[1744764202669,7.9072,126.48,126.44,2.1623]
[1744764202875,0.05007951,126.47,126.44,2.1623]
[1744764203279,7.95767951,126.47,126.45,7.9086]
[1744764203475,7.95767951,126.47,126.42,36.5744]
[1744764203782,0.05007951,126.47,126.44,7.9089]
[1744764205278,7.95767951,126.47,126.44,7.9089]
[1744764206681,7.95767951,126.47,126.42,36.5744]
[1744764206984,7.95767951,126.47,126.41,2.1857]
[1744764206985,7.9089,126.45,126.41,2.1857]
[1744764207176,0.05907786,126.44,126.41,2.1857]
[1744764207383,0.05907786,126.44,126.39,32.18]
[1744764207786,0.05907786,126.44,126.41,7.911]
[1744764208387,0.05907786,126.44,126.42,7.9107]
[1744764210288,11.03801211,126.44,126.38,6.8962]
[1744764210483,11.03801211,126.44,126.38,4.5657]
[1744764210686,11.03801211,126.44,126.36,43.15893425]
[1744764210886,0.05969478,126.41,126.39,7.9123]
[1744764211087,0.05969478,126.41,126.38,10.97893425]
[1744764211588,0.05969478,126.41,126.4,7.912]
[1744764212289,0.05969478,126.41,126.36,43.15893425]
[1744764212988,0.05969478,126.41,126.39,7.9122]
[1744764214091,0.05969478,126.41,126.36,32.18]
[1744764215091,7.97139478,126.41,126.38,7.9129]
[1744764216994,0.05969478,126.41,126.36,43.15893425]
[1744764217693,0.05969478,126.41,126.39,7.912]
[1744764217897,32.18,126.45,126.4,10.97893425]
[1744764218195,4.2802,126.47,126.4,43.17893425]
[1744764218494,2.1654,126.47,126.4,43.17893425]
[1744764219091,0.05187955,126.45,126.43,7.9098]
[1744764219296,0.05187955,126.45,126.42,0.05560491]
[1744764219493,0.05187955,126.45,126.44,7.9095]
[1744764223693,32.16,126.51,126.44,43.13893425]
[1744764223898,43.13893425,126.54,126.46,10.97893425]
[1744764224099,5.57,126.5,126.46,10.97893425]
[1744764224300,5.57,126.5,126.44,32.16]
[1744764224301,5.57,126.5,126.44,43.13893425]
[1744764224699,0.05616507,126.48,126.47,7.9076]
[1744764226105,5.57,126.5,126.49,7.9063]
[1744764227203,0.05586555,126.51,126.5,7.9057]
[1744764227403,0.05586555,126.51,126.49,0.05474609]
[1744764227800,0.05586555,126.51,126.5,18.88463425]
[1744764228004,38.8838,126.57,126.5,10.97893425]
[1744764228203,7.9023,126.56,126.5,10.97893425]
[1744764229104,0.05441139,126.54,126.52,0.05965665]
[1744764230200,0.05441139,126.54,126.53,7.9038]
[1744764231106,0.05441139,126.54,126.52,7.96385665]
[1744764231500,0.05441139,126.54,126.52,0.05965665]
[1744764231802,0.05441139,126.54,126.53,7.9038]
[1744764236209,0.05441139,126.54,126.52,32.19965665]
[1744764236711,0.05441139,126.54,126.52,40.10375665]
[1744764237311,0.05441139,126.54,126.52,0.05965665]
[1744764237511,11.03334564,126.54,126.52,0.05965665]
[1744764238010,7.9038,126.53,126.52,0.05965665]
[1744764240603,0.05441139,126.54,126.53,7.9038]
[1744764241814,0.05441139,126.54,126.52,7.96375665]
[1744764242014,0.05441139,126.54,126.52,0.05965665]
[1744764242314,0.05441139,126.54,126.53,7.9038]
[1744764242508,0.05441139,126.54,126.52,0.05965665]
[1744764243017,0.05441139,126.54,126.52,7.96385665]
[1744764243715,7.95791139,126.54,126.52,0.05965665]
[1744764244211,7.9038,126.53,126.52,0.05965665]
[1744764244614,10.97893425,126.53,126.47,2.1156]
[1744764244817,10.97893425,126.53,126.45,45.76643425]
[1744764245017,10.97893425,126.53,126.45,34.7875]
[1744764245318,7.9047,126.52,126.45,34.7875]
[1744764245612,0.05053411,126.5,126.45,34.7875]
[1744764245818,0.05053411,126.5,126.47,0.0597799]
[1744764246019,0.05053411,126.5,126.49,7.9063]
[1744764246521,47.74,126.55,126.49,32.14]
[1744764246820,15.6,126.55,126.5,10.97893425]
[1744764247620,0.05942699,126.54,126.51,0.05807855]
[1744764247918,15.6,126.55,126.52,10.97893425]
[1744764248112,15.6,126.55,126.54,7.9032]
[1744764250616,15.6,126.55,126.53,40.0435]
[1744764250820,15.6,126.55,126.53,32.14]
[1744764251921,15.6,126.55,126.54,7.9032]
[1744764254013,15.6,126.55,126.53,40.0435]
[1744764255026,15.6,126.55,126.53,32.14]
[1744764255220,15.6,126.55,126.51,0.05807855]
[1744764255621,15.6,126.55,126.53,7.9037]
[1744764255826,26.57893425,126.55,126.51,0.05807855]
[1744764256028,10.97893425,126.53,126.51,0.05807855]
[1744764256229,11.03330876,126.53,126.46,32.1]
[1744764256530,7.9048,126.52,126.46,32.1]
[1744764256924,7.9048,126.52,126.49,7.9062]
[1744764257130,7.9052,126.51,126.46,32.1]
[1744764257331,0.05646995,126.5,126.47,0.05757789]
[1744764257628,0.05646995,126.5,126.48,7.907]
[1744764258423,0.05646995,126.5,126.47,0.05757789]
[1744764258634,10.97893425,126.49,126.47,0.05757789]
[1744764259334,7.907,126.48,126.47,0.05757789]
[1744764259533,43.07893425,126.49,126.43,32.1]
[1744764259833,7.9085,126.46,126.43,7.9097]
[1744764260534,7.96818821,126.46,126.43,7.96623266]
[1744764260930,0.05968821,126.46,126.45,7.9088]
[1744764261234,0.05968821,126.46,126.43,0.05653266]
[1744764261434,7.96818821,126.46,126.43,7.96633266]
[1744764263135,7.96818821,126.46,126.44,7.9093]
[1744764263435,0.05968821,126.46,126.44,7.9093]
[1744764263730,0.05968821,126.46,126.44,32.12]
[1744764263930,8.821e-05,126.46,126.44,43.09893425]
[1744764264738,8.821e-05,126.46,126.45,7.9088]
[1744764267345,8.821e-05,126.46,126.45,40.0288]
[1744764270545,8.821e-05,126.46,126.45,51.00773425]
[1744764273146,8.821e-05,126.46,126.45,40.0288]
[1744764281367,8.821e-05,126.46,126.45,51.00773425]